Cogmind - Beta 13 @@@ ROGUE MODE // 2024.04.15 @ 22:52:38 Player: Jason Result: Destroyed by G-47 Trooper with Particle Gun Performance ------------- Evolutions (3) 1500 Regions Visited (5) 1000 Robots Destroyed (39) 195 Value Destroyed (1010) 1010 Prototype IDs (1) 20 Alien Tech Used (0) 0 Bonus (532) 532 TOTAL SCORE: 4257 Bonus ------- High Alert Combat Kills 32 Entered DSFs 500 Cogmind --------- Core Integrity 0/700 Matter 256/300 Energy 100/100 System Corruption 0% Temperature Cool (9) Movement Core (700) Ox13 Location -7/DSF Parts ------- > --- POWER (2) -------- (None) > --- PROPULSION (4) --- (None) > --- UTILITY (4) ------ Scrap Engine High-capacity Storage Unit Structural Scanner > --- WEAPON (3) ------- (None) > --- INVENTORY (20) --- Coolant Injector High-capacity Battery (66) Large Matter Pod (150) Sensor Array Improved Terrain Scanner Transport Network Coupler Targeting Computer Matter Filter ECM Suite Light Armor Plating Makeshift Light Armor Plating Hacking Suite Light Assault Rifle Peak State ------------ > --- POWER ------------ Light Ion Engine Improved Ion Engine > --- PROPULSION ------- Aluminum Leg Aluminum Leg Improved VTOL Module Improved VTOL Module > --- UTILITY ---------- High-capacity Storage Unit Structural Scanner Scrap Shield > --- WEAPON ----------- Beam Rifle Heavy Battle Rifle Rocket Launcher > --- INVENTORY -------- Light Ion Engine Wheel Scrap Engine Coolant Injector Medium Matter Pod Large Matter Pod Sensor Array Improved Terrain Scanner Transport Network Coupler Targeting Computer Matter Filter ECM Suite Light Armor Plating Makeshift Light Armor Plating Improved EM Pulse Cannon Light Assault Rifle Subdweller Shrapnel Launcher Scrap Shield Fragment [Rating: 31] Favorites ----------- Power Subdweller Power Source Engine Subdweller Power Source Propulsion Light Treads Treads Light Treads Leg Aluminum Leg Wheel Wheel Flight Unit Improved VTOL Module Utility High-capacity Storage Unit Device Structural Scanner Storage High-capacity Storage Unit Protection Scrap Shield Weapon Assault Rifle Energy Gun EM Pulse Gun Energy Cannon Improved EM Pulse Cannon Ballistic Gun Assault Rifle Ballistic Cannon Battle Cannon Launcher Subdweller Shrapnel Launcher Build | -11 -10 -10 -9 -7 -7 ------- Run | Yrd Mat Sub Rec Fac DSF Slots Evolved 6 | . . . . 6 . Power 1 | . . . . 1 . Propulsion 2 | . . . . 2 . Utility 2 | . . . . 2 . Weapon 1 | . . . . 1 . Parts Attached 59 | 8 16 14 4 7 10 Power 9 | 1 1 2 1 1 3 Engine 9 | 1 1 2 1 1 3 Core . | . . . . . . Reactor . | . . . . . . Propulsion 14 | 3 4 2 . 3 2 Treads 4 | 2 2 . . . . Leg 6 | 1 2 2 . . 1 Wheel 1 | . . . . . 1 Hover . | . . . . . . Flight 3 | . . . . 3 . Utility 12 | 2 5 2 1 1 1 Device 7 | 1 3 1 1 . 1 Storage 3 | 1 2 . . . . Processor . | . . . . . . Hackware . | . . . . . . Protection 2 | . . 1 . 1 . Artifact . | . . . . . . Weapon 24 | 2 6 8 2 2 4 Energy Gun 7 | . 2 2 1 . 2 Energy Cannon 1 | . . . . . 1 Ballistic Gun 6 | 2 1 1 . 2 . Ballistic Cannon 2 | . . 2 . . . Launcher 8 | . 3 3 1 . 1 Special Weapon . | . . . . . . Impact Weapon . | . . . . . . Slashing Weapon . | . . . . . . Piercing Weapon . | . . . . . . Special Melee Weapon . | . . . . . . Unidentified Prototypes 1 | . . . . 1 . Parts Lost 23 | . . 6 . . 17 Power 6 | . . 1 . . 5 Propulsion 6 | . . 2 . . 4 Utility 1 | . . . . . 1 Weapon 10 | . . 3 . . 7 Highest Loss Streak 17 | . . 3 . . 17 To Critical Strikes 1 | . . 1 . . . Average Slot Usage (%) 95 | . 100 99 100 76 65 Engine 13 | . 14 14 14 14 11 Treads 16 | . 27 24 . . . Leg 9 | . . 3 28 15 15 Device 12 | . 14 12 11 7 8 Storage 12 | . 14 14 14 7 7 Protection 1 | . . 1 2 7 4 Energy Gun 9 | . 11 7 14 7 5 Ballistic Gun 7 | . 12 6 . 6 4 Ballistic Cannon 2 | . . 9 . . . Launcher 6 | . 4 3 14 7 5 Naked Turns . | . . . . . . Heaviest Build 80 | 12 51 59 59 80 80 Greatest Support 40 | 40 40 40 20 20 38 Greatest Overweight (x) 15 | . 1 2 2 15 14 Average Overweight (x) 1 | . . 1 2 3 2 Largest Inventory Capacity 20 | 8 20 20 20 20 20 Average Capacity 17 | 7 16 20 20 20 20 Most Carried 20 | 7 16 20 20 20 20 Average Carried 15 | 5 12 19 19 18 18 Final Capacity 20 | 8 20 20 20 20 20 Final Carried 20 | 6 16 16 20 20 13 Class Distribution -------------------- 87% | Mutant 12% | Tank Dominant Class ---------------- Mutant | -10/Materials Mutant | -10/Subcaves Mutant | -9/Recycling Tank | -7/Factory Tank | -7/DSF Resources | -11 -10 -10 -9 -7 -7 ----------- Run | Yrd Mat Sub Rec Fac DSF Matter Collected 1557 | 254 396 452 271 . 184 Remotely . | . . . . . . Salvage Created 837 | 22 568 55 . . 192 Parts 69 | 4 49 7 . . 9 Haulers Intercepted 1 | . 1 . . . . Recyclers Shooed . | . . . . . . Parts Field Recycled . | . . . . . . Retrieved Matter . | . . . . . . Parts Self-Destructed 9 | . . 9 . . . Prevented . | . . . . . . Kills | -11 -10 -10 -9 -7 -7 ------- Run | Yrd Mat Sub Rec Fac DSF Combat Hostiles Destroyed 29 | . 19 5 . . 5 Guns 9 | . 6 2 . . 1 Cannons 1 | . . 1 . . . AOE 19 | . 13 2 . . 4 Classes Destroyed 10 | 1 6 2 . . 1 Worker 1 | . 1 . . . . Builder 1 | . 1 . . . . Tunneler 2 | 1 1 . . . . Hauler 1 | . 1 . . . . Turret 2 | . . 2 . . . Watcher 3 | . 3 . . . . Swarmer 10 | . 6 4 . . . Grunt 16 | . 13 . . . 3 Specialist 2 | . . . . . 2 Subdweller 1 | . . 1 . . . Best Kill Streak 6 | 1 6 3 . . 4 Combat Bots Only 5 | . 5 3 . . 4 Max Kills in Single Turn 4 | 1 3 1 . . 4 Gunslinging . | . . . . . . Exploded 4 | . 3 1 . . 4 Melee . | . . . . . . Uniques/NPCs Destroyed . | . . . . . . Combat | -11 -10 -10 -9 -7 -7 -------- Run | Yrd Mat Sub Rec Fac DSF Hostile Shots Fired 303 | . 64 107 . . 132 Missed 85 | . 23 32 . . 30 Damage Taken 3391 | . 459 709 . . 2223 Core 918 | . 86 130 . . 702 Absorbed by Shields . | . . . . . . Core Remaining (%) 56 | 100 . . 13 . . Volleys Fired 100 | 14 46 27 . . 13 Largest 3 | 2 2 2 . . 3 Hottest 124 | 40 70 90 . . 124 Shots Fired 179 | 28 78 49 1 . 23 Gun 128 | 28 57 27 . . 16 Cannon 17 | . . 15 . . 2 Launcher 34 | . 21 7 1 . 5 Special . | . . . . . . Kinetic 99 | 28 28 32 1 . 10 Thermal 14 | . . 6 . . 8 Explosive 29 | . 21 6 . . 2 Electromagnetic 37 | . 29 5 . . 3 Robot Hit Streak 14 | 6 12 14 . . 5 Robot Miss Streak 6 | 2 5 6 . . 1 Penetration Max . | . . . . . . Secondary Targets . | . . . . . . Shots Hit Robots 89 | 19 36 21 . . 13 Core Hits 63 | 3 37 13 . . 10 Critical Kills . | . . . . . . Critical Parts Destroyed . | . . . . . . Critical Strikes . | . . . . . . Melee Attacks . | . . . . . . Impact . | . . . . . . Slashing . | . . . . . . Piercing . | . . . . . . Sneak Attacks . | . . . . . . Combat Hostiles . | . . . . . . Follow-up Attacks . | . . . . . . Damage Inflicted 3071 | 206 1558 654 . . 653 Guns 1068 | 206 394 241 . . 227 Cannons 169 | . . 169 . . . Explosions 1834 | . 1164 244 . . 426 Melee . | . . . . . . Ramming . | . . . . . . Kinetic 1258 | 206 175 376 . . 501 Thermal 98 | . . 13 . . 85 Explosive 1445 | . 1164 230 . . 51 Electromagnetic 270 | . 219 35 . . 16 Impact . | . . . . . . Slashing . | . . . . . . Piercing . | . . . . . . Highest Corruption 2 | . . . 2 . . Average Corruption 1 | . . . 1 . . Corruption Purged . | . . . . . . Corruption Blocked . | . . . . . . Effects 1 | . . . 1 . . Misfires 1 | . . . 1 . . Overload Shots . | . . . . . . Overflow Damage 60 | . 12 10 . . 38 Projectiles 4 | . . 4 . . . Explosions 56 | . 12 6 . . 38 Melee . | . . . . . . Knockbacks 1 | . . 1 . . . Impact . | . . . . . . Kinetic 1 | . . 1 . . . Secondary . | . . . . . . Self-Inflicted Damage 72 | . 13 . . . 59 Shots 2 | . 1 . . . 1 Rammed . | . . . . . . Targets Rammed . | . . . . . . Kicked . | . . . . . . Crushed . | . . . . . . Highest Temperature 51 | . 51 17 2 . 7 Average Temperature 12 | . 15 4 1 . 4 Received Heat Transfer 1149 | . 219 246 . . 684 Siege Activations . | . . . . . . Robots Corrupted . | . . . . . . Combat Hostiles . | . . . . . . Parts Fried . | . . . . . . Impact Corruptions . | . . . . . . Robots Melted . | . . . . . . Combat Hostiles . | . . . . . . Parts Melted . | . . . . . . Heat Transferred 259 | . . 37 . . 222 Parts Sabotaged . | . . . . . . Parts Stolen . | . . . . . . Parts Stripped . | . . . . . . Power Chain Reactions . | . . . . . . Alert | -11 -10 -10 -9 -7 -7 ------- Run | Yrd Mat Sub Rec Fac DSF Peak Influence 616 | 5 473 . 616 340 265 Initial 616 | . 3 . 616 335 238 Average 319 | 3 295 . 531 335 235 Maximum Alert Level 2 | . 2 . 2 1 1 Low Security (%) 21 | 100 19 . . . 13 Level 1 43 | . 60 . . 100 86 Level 2 34 | . 20 . 100 . . Level 3 . | . . . . . . Level 4 . | . . . . . . Level 5 . | . . . . . . High Security . | . . . . . . Max Security . | . . . . . . Squads Dispatched 5 | . 4 . . . 1 Investigation 2 | . 2 . . . . Extermination . | . . . . . . Reinforcement 3 | . 2 . . . 1 Assault . | . . . . . . Garrison . | . . . . . . Intercept . | . . . . . . Searches Triggered . | . . . . . . Construction Impeded . | . . . . . . Haulers Reinforced . | . . . . . . Active Scanning Responses . | . . . . . . Cargo Convoy Interrupts . | . . . . . . Stealth | -11 -10 -10 -9 -7 -7 --------- Run | Yrd Mat Sub Rec Fac DSF Distress Signals . | . . . . . . Communications Jammed . | . . . . . . Distress Signals . | . . . . . . Times Spotted 93 | . 24 59 . . 10 Peak Tracking Total 9 | . 5 4 . . 9 Tactical Retreats 5 | . 1 4 . . . Traps | -11 -10 -10 -9 -7 -7 ------- Run | Yrd Mat Sub Rec Fac DSF Traps Triggered 1 | . 1 . . . . Indirectly . | . . . . . . Trap Hack Attempts . | . . . . . . Triggered . | . . . . . . Disarmed . | . . . . . . Reprogrammed . | . . . . . . Reused . | . . . . . . Traps Extracted . | . . . . . . Installed . | . . . . . . Triggered 3 | . . 3 . . . Machines | -11 -10 -10 -9 -7 -7 ---------- Run | Yrd Mat Sub Rec Fac DSF Machines Disabled 4 | . 2 2 . . . Max in Single Turn 1 | . 1 1 . . . Machines Repaired . | . . . . . . Machines Dismantled . | . . . . . . Machines Sabotaged . | . . . . . . Overloaded Fab Kills . | . . . . . . Hacking | -11 -10 -10 -9 -7 -7 --------- Run | Yrd Mat Sub Rec Fac DSF Machines Accessed 11 | . 3 . 7 1 . Terminals 7 | . 3 . 3 1 . Fabricators . | . . . . . . Repair Stations . | . . . . . . Recycling Units 4 | . . . 4 . . Scanalyzers . | . . . . . . Garrison Access . | . . . . . . Total Hacks 27 | . 11 . 15 1 . Successful 14 | . 5 . 8 1 . Failed 13 | . 6 . 7 . . Catastrophic 3 | . . . 3 . . Database Lockouts . | . . . . . . Manual . | . . . . . . Terminals 21 | . 11 . 9 1 . Fabricators . | . . . . . . Repair Stations . | . . . . . . Recycling Units 6 | . . . 6 . . Scanalyzers . | . . . . . . Garrison Access . | . . . . . . Terminal Hacks 9 | . 5 . 3 1 . Record 1 | . 1 . . . . Robot Analysis 1 | . 1 . . . . Open DSF 1 | . . . . 1 . Terminal Index 1 | . 1 . . . . Alert Level 1 | . 1 . . . . Dispatch Records 1 | . . . 1 . . Surveillance Status 1 | . . . 1 . . Hauler Manifests 1 | . 1 . . . . Registered Components 1 | . . . 1 . . Fabricator Hacks . | . . . . . . Repair Station Hacks . | . . . . . . Recycling Unit Hacks 5 | . . . 5 . . Report Inventory 4 | . . . 4 . . Retrieve Components 1 | . . . 1 . . Scanalyzer . | . . . . . . Garrison Access Hacks . | . . . . . . Unauthorized Hacks . | . . . . . . Terminals . | . . . . . . Fabricators . | . . . . . . Repair Stations . | . . . . . . Recycling Units . | . . . . . . Scanalyzers . | . . . . . . Garrison Access . | . . . . . . Data Cores Recovered . | . . . . . . Used . | . . . . . . Hacking Detections 8 | . 3 . 5 . . Full Trace Events 4 | . 1 . 3 . . Feedback Events 2 | . . . 2 . . Corruption 2 | . . . 2 . . Feedback Blocked . | . . . . . . Robot Schematics Acquired . | . . . . . . Robots Built . | . . . . . . Authchips . | . . . . . . Time . | . . . . . . Total Robot Build Rating . | . . . . . . Part Schematics Acquired . | . . . . . . Parts Built . | . . . . . . Authchips . | . . . . . . Time . | . . . . . . Total Part Build Rating . | . . . . . . Parts Repaired . | . . . . . . Time . | . . . . . . Parts Recycled . | . . . . . . Recycled Matter . | . . . . . . Retrieved Matter . | . . . . . . Retrieved Components 1 | . . . 1 . . Parts Scanalyzed . | . . . . . . Part Schematics Acquired . | . . . . . . Parts Damaged . | . . . . . . Bothacking | -11 -10 -10 -9 -7 -7 ------------ Run | Yrd Mat Sub Rec Fac DSF Used RIF Installer . | . . . . . . Robots Hacked . | . . . . . . Non-combat . | . . . . . . Combat . | . . . . . . Robot Hacks Applied . | . . . . . . Relay Couplers Released . | . . . . . . Fabnet Peak Effective % . | . . . . . . Robots Rewired . | . . . . . . Allies Hacked . | . . . . . . Hacks Repelled . | . . . . . . Allies | -11 -10 -10 -9 -7 -7 -------- Run | Yrd Mat Sub Rec Fac DSF Total Allies . | . . . . . . Largest Group . | . . . . . . Highest-Rated Group . | . . . . . . Highest-Rated Ally . | . . . . . . Total Orders . | . . . . . . Ally Attacks . | . . . . . . Total Damage . | . . . . . . Kills . | . . . . . . Allies Corrupted . | . . . . . . Allies Melted . | . . . . . . Intel | -11 -10 -10 -9 -7 -7 ------- Run | Yrd Mat Sub Rec Fac DSF Robot Analysis Total 1 | . 1 . . . . Derelict Logs Recovered . | . . . . . . Drone Launches . | . . . . . . Drone Recoveries . | . . . . . . Exploration | -11 -10 -10 -9 -7 -7 ------------- Run | Yrd Mat Sub Rec Fac DSF Turns Passed 3890 | 364 1145 1098 725 368 190 Spaces Moved 1535 | 218 472 411 276 104 54 Core 39 | 37 . . . . 2 Treads 1020 | 177 472 371 . . . Legs 468 | 4 . 40 276 103 45 Wheels 7 | . . . . . 7 Hover . | . . . . . . Flight 1 | . . . . 1 . Fastest Speed 50 | 50 160 240 260 330 140 Average Speed 228 | 140 209 242 260 337 262 Slowest Speed 1105 | 160 240 320 260 1105 750 Overloaded Moves . | . . . . . . Propulsion Burnouts . | . . . . . . Robots Hopped . | . . . . . . Cave-ins Triggered . | . . . . . . Exploration Rate (%) 36 | 12 68 27 50 3 60 Regions Visited 5 Branch Regions 2 Pre-discovered Areas . | . . . . . . Known Exits Taken 1 | . . . . 1 . Unknown Exits Taken 4 | 1 1 1 1 . . Scrap Searched 1 | . . 1 . . . Spaces Dug 5 | . 5 . . . . Terrain Destroyed 202 | . 88 51 17 . 46 Melee . | . . . . . . Projectile 4 | . . 3 . . 1 AOE 198 | . 88 48 17 . 45 Terrain Rammed . | . . . . . . Walls Destroyed . | . . . . . . Machines Disabled . | . . . . . . Actions | -11 -10 -10 -9 -7 -7 --------- Run | Yrd Mat Sub Rec Fac DSF Total 1744 | 247 544 464 284 124 81 Wait 4 | . . 3 . . 1 Move 1530 | 217 471 410 275 103 54 Hop . | . . . . . . Pick Up 36 | 8 9 7 3 8 1 Fast Attach 12 | 5 . . 1 2 4 Attach 18 | 2 . 6 . 4 6 Detach . | . . . . . . Swap 29 | 1 16 8 3 1 . Drop 14 | . 2 3 2 6 1 Fire 100 | 14 46 27 . . 13 Melee . | . . . . . . Ram . | . . . . . . Kick . | . . . . . . Crush . | . . . . . . Escape Stasis . | . . . . . . Rewire . | . . . . . . Trap . | . . . . . . Miscellaneous 1 | . . . . . 1 Route ------- -11/Scrapyard -10/Materials (discovered 4 exits: [*Mat x3] / [*Sub]) -10/Subcaves -9/Recycling -7/Factory -7/DSF History --------- Turn | Location | Event 13 | -11/Scrapyard | Discovered new exit (range 16) 365 | -11/Scrapyard | Entered Materials 366 | -10/Materials | Build established: Mutant 732 | -10/Materials | Discovered new exit (range 12) 963 | -10/Materials | Discovered new exit (range 16) 1173 | -10/Materials | Discovered new exit (range 12) 1378 | -10/Materials | Discovered new exit (range 16) 1510 | -10/Materials | Entered Subcaves 1573 | -10/Subcaves | Core integrity fell below 50% 1804 | -10/Subcaves | Ambushed by swarm of Subdwellers 1988 | -10/Subcaves | Shifting Twisted Machinery released Hvy. Battle Rifle 2022 | -10/Subcaves | Shifting Twisted Machinery released Mak. Light Armor Plating 2460 | -10/Subcaves | Discovered new exit (range 9) 2500 | -10/Subcaves | Lost 3 parts (2n1w) 2525 | -10/Subcaves | Core integrity fell below 20% 2608 | -10/Subcaves | Entered Recycling 2608 | -9/Recycling | Found Scrap Engine 3271 | -9/Recycling | Discovered new exit (range 15) 3333 | -9/Recycling | Entered Factory 3333 | -7/Factory | Evolved 6 slots: Power x1, Propulsion x2, Utility x2, Weapon x1 3663 | -7/Factory | Build established: Tank 3697 | -7/Factory | Identified exit to DSF 3701 | -7/Factory | Entered DSF 3794 | -7/DSF | Additional patrols routed to DSF 3858 | -7/DSF | Core integrity fell below 50% 3886 | -7/DSF | Core integrity fell below 20% 3891 | -7/DSF | Destroyed by G-47 Trooper with Particle Gun Last Messages --------------- 03861_ Acquired Deuterium Engine. 03866_ C-30 ARC bursts open, deploying its payload. 03866_ L-41 Fighter unfolds itself. 03866_ G-47 Trooper unfolds itself. 03870_ G-47 Trooper destroyed. 03870_ Sub. Shrapnel Launcher destroyed. 03870_ Destroyed Sub. Shrapnel Launcher. 03870_ G-47 Trooper destroyed. 03870_ X-62 Marksman destroyed. 03872_ Acquired 41 matter. 03875_ Knocked back. 03876_ Acquired 25 matter. 03876_ Deuterium Engine destroyed. 03877_ Acquired Particle Gun. 03877_ Deuterium Engine destroyed. 03878_ Wheel destroyed. 03880_ Acquired 43 matter. 03886_ Knocked back. 03886_ Particle Gun destroyed. Map ----- +----------------------------------------------------+ | | | | | | | | | | | | | | | | | | | | | | | | | | | | | | | | | ?????????????????????????????????????????????????? | | ?????????????????????????????????????????????????? | | ?????????????????????????????????????????????????? | | ??????????????????????#########??????????????????? | | ?????????????????###?###########????##""#????????? | | ?????????????????####### ## ###???###"#####?????? | | ????????????####### ### ;;;;; ########"#####?????? | | ????????????####### ; * ; #######"""""##?????? | | ????????????## ;! g !* ; ;!!##"""""###????? | | ?????????? % @l H% ""##"????? | | ?????????? g ! * """""????? | | ????????????## ;g % ;;;!!!;! ## ""###????? | | ????????????## ; ###!!!#!!### #####????? | | ????????????####;;;;; ########## ####?????? | | ???????????? ### # ######## ##??????? | | ?????????????## ##### ?????### ##??????? | | ?????????????########## ##?????## "##??????? | | ?????????????###???## ! ! ????### !! ##??????? | | ?????????????????????!! !?????## !! ##??????? | | ???????????????????##!! ! ##?### !! ###?????? | | ???????????????????#### ####?#### ####?????? | | ??????????????????? ### ###!!!#]]] # [[##?????? | | ?????????????????????#a ##!!!"]]]## [[###????? | | ?????????????????????? ###????? | | ?????????????????????? ^ "##????? | | ??????????????????????? ###????? | | ??????????????????????? ##!!!# "# ###????? | | ??????????????????????????###!!!# ## ##?????? | | ???????????????????????????########### ####?????? | | ??????????????????????????? ######## ###?????? | | ??????????????????????????????????## ##??????? | | ??????????????????????????????????## ##??????? | | ??????????????????????????????????#### ###??????? | | ??????????????????????????????????## ##??????? | +----------------------------------------------------+ Best States ------------- Heat Dissipation 34 Energy Generation 23 Energy Capacity 450 Matter Stores 300 Matter Capacity 300 Sight Range 16 Robot Scan Range 14 Terrain Scan Range 16 Terrain Scan Density 10 Armor Coverage 800 Evasion (%) 50 Recoil Reduction 2 Item Schematics ----------------- None Robot Schematics ------------------ None Fabricated ------------ Nothing Alien Tech Used ----------------- None Achievements -------------- Made in Tau Ceti IV Oops Challenges ------------ None Game ------ Seed WeightCarbideDoomcannon Manual? 0 Play Time 00:50:58 Cumulative 16.5 hours Start 2024.04.15 @ 22:02:40 End 2024.04.15 @ 22:52:38 Sessions 1 Manual Loads 0 Difficulty Rogue Special Mode None Game No. 14 Rogue 14 Adventurer 0 Explorer 0 Win Type - Total 0 Types 0/0/0/0/0/0/0/0/0 Lore% 2 Gallery% 14 Achievement% 7 Wizard Run 0 Options --------- Layout 1 ASCII 0 Keyboard 0 Movement Mouse Keybinds 0 Fullscreen 1 Font 24/Smallcaps Map View 50x35 Zoom Use 0% Tactical HUD 1 Map Filters NONE Filters NONE Steam 1 RUN: cf0a6f1c-797f-4e00-8146-75f07d5db72d